bitfinex-derivatives/quotes_SOLF0:USTF0_20220109
["timestamp","ask_amount","ask_price","bid_price","bid_amount"]
[1641727036154,16.434225,140.55,140.47,4.0]
[1641727036353,27.66479,140.54,140.47,4.0]
[1641727036653,27.66479,140.54,140.49,4.0]
[1641727036856,30.00130006,140.54,140.49,4.0]
[1641727037254,30.00130006,140.54,140.48,4.0]
[1641727037455,27.66479,140.54,140.48,4.0]
[1641727037657,27.66479,140.54,140.51,4.0]
[1641727037855,15.09873488,140.57,140.52,4.0]
[1641727038457,15.09873488,140.58,140.52,4.0]
[1641727038657,15.09873488,140.58,140.48,40.67079]
[1641727039157,2.33836276,140.58,140.49,4.0]
[1641727039355,2.33836276,140.58,140.49,4.04335984]
[1641727039557,2.33836276,140.58,140.49,8.04335984]
[1641727040058,2.33836276,140.58,140.48,27.66479]
[1641727040258,27.66479,140.56,140.51,4.0]
[1641727040658,17.43709764,140.58,140.51,4.0]
[1641727041059,17.43709764,140.58,140.48,27.66479]
[1641727041259,2.33836276,140.58,140.48,27.66479]
[1641727041458,2.33836276,140.58,140.49,4.04339124]
[1641727042659,2.33836276,140.58,140.5,4.0]
[1641727042860,2.33836276,140.58,140.56,4.0]
[1641727043060,2.33836276,140.58,140.56,12.577]
[1641727043260,27.66479,140.59,140.56,12.577]
[1641727043458,27.66479,140.59,140.56,8.577]
[1641727043660,69.02613488,140.61,140.56,8.577]
[1641727043860,15.09873488,140.61,140.56,8.577]
[1641727044059,15.09873488,140.61,140.6,4.0]
[1641727044261,15.09873488,140.61,140.6,13.201]
[1641727044860,15.09873488,140.65,140.6,13.201]
[1641727045060,15.09873488,140.65,140.6,9.201]
[1641727045861,15.09873488,140.65,140.6,13.201]
[1641727046260,15.09873488,140.65,140.6,9.201]
[1641727046962,15.09873488,140.65,140.6,13.201]
[1641727047163,15.09873488,140.65,140.63,4.0]
[1641727047363,15.09873488,140.65,140.63,11.912]
[1641727047566,15.09873488,140.65,140.63,7.912]
[1641727047764,15.09873488,140.65,140.64,4.0]
[1641727048066,3.51664996,140.66,140.64,15.10807833]
[1641727048265,3.51664996,140.66,140.65,8.0]
[1641727048465,3.51664996,140.66,140.65,70.43639544]
[1641727048664,39.99389762,140.69,140.65,70.43639544]
[1641727048866,39.99389762,140.69,140.68,4.0]
[1641727049065,89.24299762,140.78,140.68,16.06]
[1641727049266,39.99389762,140.78,140.74,4.0]
[1641727049465,39.99389762,140.78,140.74,6.533]
[1641727050167,53.5414,140.82,140.74,10.533]
[1641727050366,27.66479,140.81,140.74,10.533]
[1641727050766,27.66479,140.81,140.74,6.533]
[1641727051268,27.66479,140.81,140.74,10.533]
[1641727051467,27.66479,140.81,140.74,6.533]
[1641727051669,27.66479,140.81,140.74,10.533]
[1641727052966,27.66479,140.81,140.74,6.533]
[1641727054167,27.66479,140.81,140.72,27.66479]
[1641727055871,27.66479,140.81,140.7,27.66479]
[1641727056070,35.28379,140.81,140.7,27.66479]
[1641727056269,35.28379,140.81,140.73,4.0]
[1641727056669,27.66479,140.78,140.73,4.0]
[1641727056869,27.66479,140.78,140.7,27.66479]
[1641727057969,27.66479,140.78,140.71,4.0]
[1641727059173,27.66479,140.78,140.7,27.66479]
[1641727059373,34.82279,140.78,140.71,4.0]
[1641727060374,34.82279,140.78,140.7,27.66479]
[1641727060575,27.66479,140.71,140.62,34.77362628]
[1641727060776,36.24679,140.71,140.63,4.0]
[1641727060975,36.24679,140.71,140.62,34.77362628]
[1641727061174,36.24679,140.71,140.68,4.0]
[1641727061378,8.582,140.71,140.63,8.565]
[1641727061577,106.1257,140.73,140.63,8.565]
[1641727062277,106.1257,140.73,140.68,4.0]
[1641727062476,15.10934167,140.77,140.68,4.0]
[1641727062677,27.66479,140.74,140.68,4.0]
[1641727063480,27.66479,140.74,140.66,7.076]
[1641727064484,27.66479,140.74,140.66,11.076]
[1641727064683,27.66479,140.71,140.66,11.076]
[1641727064883,27.66479,140.71,140.66,7.076]
[1641727065083,27.66479,140.71,140.63,8.565]
[1641727065785,27.66479,140.71,140.67,4.0]
[1641727066586,27.66479,140.71,140.66,7.327]
[1641727066785,27.66479,140.71,140.67,4.0]
[1641727066986,27.66479,140.71,140.63,4.0]
[1641727067189,36.01779,140.71,140.63,4.0]
[1641727067386,36.01779,140.71,140.58,11.11085828]
[1641727067387,36.01779,140.71,140.61,4.0]
[1641727067587,36.01779,140.71,140.59,4.0]
[1641727068187,8.0,140.7,140.58,11.11085828]
[1641727068387,7.1133874,140.69,140.53,11.1133874]
[1641727068886,27.66479,140.65,140.59,4.0]
[1641727069690,27.66479,140.65,140.6,4.0]
[1641727069889,7.1133874,140.69,140.62,4.0]
[1641727070090,7.1133874,140.69,140.6,9.29]
[1641727070291,7.1133874,140.69,140.61,4.0]
[1641727070690,27.66479,140.68,140.61,4.0]
[1641727071291,27.66479,140.68,140.55,4.0]
[1641727071491,27.66479,140.68,140.53,34.7781774]
[1641727071692,51.1574,140.67,140.53,34.7781774]
[1641727071892,51.1574,140.67,140.57,4.0]
[1641727072092,51.1574,140.67,140.54,8.0416541]
[1641727072392,51.1574,140.67,140.53,38.7781774]
[1641727072592,51.1574,140.67,140.59,4.0]
[1641727072792,27.66479,140.64,140.59,11.783]
[1641727072993,27.66479,140.64,140.59,7.783]
[1641727074692,51.1574,140.67,140.59,7.783]
[1641727075494,51.1574,140.67,140.6,4.0]
[1641727075994,7.1133874,140.69,140.66,8.0]
[1641727076194,39.99389762,140.7,140.68,15.10555299]
[1641727076396,35.37355205,140.74,140.71,5.6854343]
[1641727076595,3.47355205,140.74,140.73,8.0]
[1641727076794,3.47355205,140.74,140.73,63.32958]
[1641727076995,128.18019477,140.9,140.73,63.32958]
[1641727077197,128.18019477,140.9,140.77,4.0]
[1641727077397,20.0,140.87,140.76,6.156]
[1641727077597,20.0,140.82,140.76,6.156]
[1641727077797,7.10732054,140.81,140.76,6.156]
[1641727077998,27.10732054,140.81,140.65,7.10732054]
[1641727078197,53.5549,140.8,140.67,4.0]
[1641727078397,53.5549,140.8,140.68,4.0]
[1641727078597,53.5549,140.8,140.68,8.03829006]
[1641727078798,27.66479,140.77,140.68,35.70308006]
[1641727079000,36.78779,140.77,140.68,35.70308006]
[1641727079200,36.78779,140.77,140.68,31.66479]
[1641727079600,56.78779,140.77,140.66,27.66479]
[1641727079900,20.0,140.74,140.62,4.0]
[1641727080101,29.212,140.74,140.62,4.0]
[1641727080301,15.00880416,140.73,140.61,4.0]
[1641727080500,65.54770416,140.73,140.61,4.0]
[1641727080702,20.0,140.71,140.56,15.00880416]
[1641727080903,20.0,140.71,140.59,31.66479]
[1641727080904,7.1131344,140.69,140.59,31.66479]
[1641727081504,7.1131344,140.69,140.6,4.0404469]
[1641727082805,27.66479,140.66,140.59,27.66479]
[1641727083007,34.02079,140.66,140.59,27.66479]
[1641727084208,23.00880416,140.68,140.6,4.04035107]
[1641727084407,23.00880416,140.68,140.6,9.83035107]
[1641727084607,8.0,140.68,140.61,4.0]
[1641727085107,27.66479,140.7,140.62,4.04035107]
[1641727085510,27.66479,140.7,140.59,27.66479]
[1641727086109,27.66479,140.7,140.6,8.04016299]
[1641727086309,42.67359416,140.7,140.6,4.04016299]
[1641727086712,7.11364041,140.68,140.6,4.04016299]
[1641727086914,27.66479,140.67,140.58,4.0]
[1641727088213,27.66479,140.67,140.57,27.66479]
[1641727088613,27.66479,140.67,140.58,4.04115568]
[1641727089015,2.33207437,140.66,140.6,4.0]
[1641727089213,2.33207437,140.66,140.58,10.70015568]
[1641727089513,2.33207437,140.66,140.58,6.659]
[1641727089713,2.33207437,140.66,140.6,4.0]
[1641727089913,2.33207437,140.66,140.59,8.04060827]
[1641727090114,2.33207437,140.67,140.59,8.04060827]
[1641727090314,2.33207437,140.67,140.6,4.04060827]
[1641727091116,2.33207437,140.67,140.58,4.0]
[1641727091816,2.33207437,140.67,140.59,4.04082662]
[1641727092417,2.33207437,140.67,140.57,31.66479]
[1641727092620,37.34087853,140.67,140.55,27.66479]
[1641727092819,27.66479,140.61,140.55,27.66479]
[1641727093019,36.21379,140.61,140.55,27.66479]
[1641727093220,36.21379,140.61,140.52,15.00880416]
[1641727093621,36.21379,140.61,140.49,4.0]
[1641727094020,36.21379,140.61,140.54,4.0]
[1641727094222,49.78976566,140.63,140.54,10.856]
[1641727094223,42.67359416,140.63,140.54,10.856]
[1641727094620,42.67359416,140.63,140.55,4.0425953]
[1641727095221,27.66479,140.63,140.53,27.66479]
[1641727095422,34.99579,140.63,140.51,27.66479]
[1641727095622,34.99579,140.63,140.52,4.0]
[1641727095823,34.99579,140.63,140.51,31.66479]
[1641727096124,34.99579,140.63,140.53,4.04251091]
[1641727096324,10.33177335,140.62,140.53,4.04251091]
[1641727096523,10.33177335,140.62,140.52,4.04251091]
[1641727096825,27.66479,140.6,140.52,4.04251091]
[1641727097024,2.33177335,140.61,140.53,4.0]
[1641727097225,2.33177335,140.61,140.52,8.04251091]
[1641727097828,2.33177335,140.61,140.53,4.04251091]
[1641727098228,2.33177335,140.62,140.53,4.04251091]
[1641727098428,2.33177335,140.62,140.53,9.91851091]
[1641727098828,2.33177335,140.62,140.54,31.66479]
[1641727099035,15.00880416,140.65,140.54,27.66479]
[1641727099230,15.00880416,140.65,140.59,4.0]
[1641727099432,15.00880416,140.65,140.61,4.0]
[1641727099630,15.00880416,140.65,140.59,5.762]
[1641727099631,58.03,140.68,140.6,4.0]
[1641727100229,58.03,140.68,140.55,11.11262847]
[1641727100230,58.03,140.68,140.61,4.0]
[1641727100431,58.03,140.68,140.56,4.0]
[1641727100630,7.11439954,140.67,140.54,42.67359416]
[1641727100833,27.66479,140.64,140.54,42.67359416]
[1641727101032,41.03945514,140.64,140.54,42.67359416]
[1641727101233,33.92379,140.64,140.55,4.04195531]
[1641727103934,22.33097927,140.63,140.55,4.04195531]
[1641727104434,22.33097927,140.63,140.49,15.00880416]
[1641727104435,7.11794434,140.6,140.49,15.00880416]
[1641727104636,14.78594434,140.6,140.49,15.00880416]
[1641727104836,27.66479,140.57,140.49,15.00880416]
[1641727105134,33.46579,140.57,140.5,4.04309916]
[1641727105736,40.58525462,140.57,140.5,4.04309916]
[1641727105934,40.58525462,140.57,140.47,4.04309916]
[1641727106835,27.66479,140.52,140.47,4.04309916]
[1641727107034,27.66479,140.52,140.46,4.04309916]
[1641727107035,36.93579,140.52,140.46,4.04309916]
[1641727107435,36.93579,140.52,140.42,8.04309916]
[1641727107635,36.93579,140.52,140.42,4.04309916]
[1641727107835,7.12225348,140.51,140.42,4.04309916]
[1641727108037,7.12225348,140.51,140.43,4.04309916]
[1641727108338,7.12276078,140.5,140.43,4.04309916]
[1641727109038,27.66479,140.44,140.42,4.04309916]
[1641727109238,33.83279,140.44,140.38,19.00880416]
[1641727109439,33.83279,140.44,140.38,4.0]
[1641727109740,6.168,140.44,140.42,4.0]
[1641727110439,8.0,140.49,140.42,4.0]
[1641727110843,35.66479,140.49,140.42,4.0]
[1641727111542,35.66479,140.49,140.43,4.04539095]
[1641727115950,8.0,140.49,140.43,4.04539095]
[1641727116148,50.2775,140.5,140.45,4.0]
[1641727116346,55.8566,140.52,140.45,13.113]
[1641727116546,69.4127,140.53,140.45,13.113]
[1641727116846,69.4127,140.53,140.46,4.04539095]
[1641727117046,58.6727,140.53,140.46,4.04539095]
[1641727117548,27.66479,140.55,140.46,8.04539095]
[1641727117949,27.66479,140.55,140.47,4.04539095]
[1641727118446,27.66479,140.55,140.46,8.04539095]
[1641727118646,27.66479,140.55,140.46,4.04539095]
[1641727118847,27.66479,140.55,140.47,4.04539095]
[1641727119448,27.66479,140.55,140.46,4.04539095]
[1641727119648,27.66479,140.55,140.48,4.04539095]
[1641727120051,27.66479,140.55,140.48,12.12539095]
[1641727120249,27.66479,140.55,140.48,8.08]
[1641727120548,7.12174625,140.52,140.48,8.08]
[1641727120747,7.12276078,140.5,140.43,4.0]
[1641727121149,27.66479,140.49,140.43,4.0]
[1641727121348,35.30079,140.49,140.43,4.0]
[1641727121549,7.636,140.49,140.39,31.66479]
[1641727121748,7.636,140.49,140.44,4.04516196]
[1641727121949,7.636,140.49,140.45,4.0]
[1641727122248,7.636,140.49,140.4,4.04516196]
[1641727122448,7.12149266,140.53,140.44,4.0]
[1641727123651,7.12149266,140.53,140.43,27.66479]
[1641727123850,7.12149266,140.53,140.44,4.0]
[1641727124252,7.12149266,140.53,140.43,27.66479]
[1641727124451,14.01849266,140.53,140.43,31.66479]
[1641727124651,14.01849266,140.53,140.39,31.66479]
[1641727125050,27.66479,140.52,140.42,27.66479]
[1641727125550,27.66479,140.52,140.43,4.04510896]
[1641727125751,27.66479,140.52,140.45,4.0]
[1641727125952,27.66479,140.52,140.43,4.04510896]
[1641727126150,7.12149266,140.53,140.43,4.04510896]
[1641727126551,7.12149266,140.53,140.44,4.0]
[1641727126753,7.12149266,140.53,140.45,4.0]
[1641727126953,7.12149266,140.53,140.42,35.14779]
[1641727127153,27.66479,140.51,140.42,35.14779]
[1641727127354,27.66479,140.51,140.47,4.0]
[1641727127554,27.66479,140.51,140.47,11.85]
[1641727127755,27.66479,140.51,140.47,7.85]
[1641727128355,27.66479,140.51,140.47,11.85]
[1641727128555,10.8,140.53,140.5,4.0]
[1641727128756,10.8,140.53,140.52,4.0]
[1641727128954,27.66479,140.55,140.52,4.0]
[1641727129155,27.66479,140.55,140.5,9.343]
[1641727129355,27.66479,140.55,140.5,13.343]
[1641727129755,27.66479,140.55,140.5,9.343]
[1641727129955,27.66479,140.55,140.51,4.0]
[1641727130657,27.66479,140.55,140.5,13.343]
[1641727130861,15.00880416,140.58,140.52,4.0]
[1641727131058,15.00880416,140.58,140.55,4.0]
[1641727131260,15.00880416,140.59,140.55,11.931]
[1641727132060,28.16279749,140.62,140.55,11.931]
[1641727132259,28.16279749,140.62,140.55,7.931]
[1641727132459,35.27947542,140.62,140.55,7.931]
[1641727132761,7.11769102,140.6,140.49,27.66479]
[1641727133264,27.66479,140.59,140.5,4.0]
[1641727133461,36.74779,140.59,140.5,4.0]
[1641727133659,15.00880416,140.57,140.49,55.32958]
[1641727134961,15.00880416,140.57,140.5,4.0]
[1641727135163,15.00880416,140.57,140.49,59.32958]
[1641727135360,15.00880416,140.57,140.49,55.32958]
[1641727135562,15.00880416,140.57,140.46,4.0]
[1641727135960,15.00880416,140.55,140.43,7.1187044]
[1641727136160,20.78180416,140.55,140.47,4.0]
[1641727136763,2.33399333,140.54,140.42,15.00880416]
[1641727137061,2.33399333,140.54,140.47,4.0]
[1641727137563,2.33399333,140.54,140.45,27.66479]
[1641727137564,7.1212391,140.53,140.45,27.66479]
[1641727138064,9.45472534,140.54,140.45,27.66479]
[1641727138663,9.45472534,140.54,140.46,4.0]
[1641727138861,9.45472534,140.54,140.45,27.66479]
[1641727139062,24.4635295,140.54,140.45,27.66479]
[1641727139663,17.34279749,140.53,140.45,27.66479]
[1641727141264,17.34279749,140.53,140.48,27.66479]
[1641727142966,17.34279749,140.53,140.48,31.66479]
[1641727143366,17.34279749,140.53,140.48,27.66479]
[1641727143565,17.34279749,140.53,140.48,31.66479]
[1641727143766,2.33399333,140.54,140.48,31.66479]
[1641727144168,9.45497887,140.54,140.48,27.66479]
[1641727144566,15.00880416,140.53,140.48,27.66479]
[1641727145268,17.34279749,140.53,140.48,27.66479]
[1641727145468,7.12225348,140.51,140.48,27.66479]
[1641727146173,2.33399333,140.5,140.48,27.66479]
[1641727146372,2.33399333,140.5,140.45,27.66479]
[1641727146771,2.33399333,140.5,140.45,31.66479]
[1641727146973,2.33399333,140.5,140.45,27.66479]
[1641727149179,2.33399333,140.5,140.45,31.66479]
[1641727150179,2.33399333,140.51,140.45,27.66479]
[1641727150379,9.45624681,140.51,140.45,27.66479]
[1641727150581,2.33399333,140.51,140.45,27.66479]
[1641727151180,17.34279749,140.51,140.45,27.66479]
[1641727151482,17.34279749,140.51,140.46,4.0]
[1641727152080,17.34279749,140.51,140.47,4.0]
[1641727152382,15.00880416,140.54,140.45,31.66479]
[1641727153081,15.00880416,140.54,140.46,4.04460213]
[1641727153280,27.66479,140.52,140.46,4.04460213]
[1641727153481,27.66479,140.52,140.45,27.66479]
[1641727153881,27.66479,140.52,140.46,4.0445643]
[1641727154282,27.66479,140.52,140.42,42.67359416]
[1641727154984,2.33972961,140.51,140.45,4.0]
[1641727155184,2.33972961,140.51,140.43,6.73778585]
[1641727155385,2.33972961,140.51,140.46,4.0]
[1641727155886,27.66479,140.52,140.44,4.04478616]
[1641727156087,27.66479,140.52,140.47,4.0]
[1641727156487,15.00880416,140.54,140.47,4.0]
[1641727156690,106.76467266,140.55,140.47,4.0]
[1641727157288,49.79407266,140.55,140.47,4.0]
[1641727157490,17.34823008,140.54,140.47,4.0]
[1641727158089,2.33942592,140.54,140.48,4.0]
[1641727158490,2.33942592,140.54,140.46,7.832]
[1641727158691,2.33942592,140.54,140.51,4.0]
[1641727158990,2.33942592,140.54,140.51,7.123]
[1641727162893,17.34823008,140.54,140.51,7.123]
[1641727164195,17.34823008,140.54,140.48,4.0]
[1641727164394,17.34823008,140.54,140.46,7.832]
[1641727164595,17.34823008,140.54,140.45,27.66479]
[1641727164995,17.34823008,140.54,140.47,2.69717768]
[1641727165194,17.34823008,140.54,140.47,10.45317768]
[1641727165395,17.34823008,140.54,140.5,4.0]
[1641727165596,17.34823008,140.54,140.5,9.29]
[1641727165798,17.34823008,140.54,140.53,4.0]
[1641727165996,40.12652402,140.57,140.53,14.402]
[1641727166196,40.12652402,140.57,140.56,4.0]
[1641727166396,40.12652402,140.57,140.56,12.737]
[1641727166597,40.12652402,140.62,140.56,12.737]
[1641727166796,40.12652402,140.62,140.57,4.0]
[1641727168002,20.0,140.6,140.49,4.0]
[1641727168202,20.0,140.6,140.46,44.12652402]
[1641727168203,7.11921119,140.58,140.46,44.12652402]
[1641727168402,14.28321119,140.58,140.46,40.12652402]
[1641727168602,54.40973521,140.58,140.46,4.0]
[1641727168801,20.22023228,140.57,140.46,4.0]
[1641727169001,20.22023228,140.57,140.47,4.04432354]
[1641727169207,27.66479,140.53,140.48,4.0]
[1641727169406,35.56379,140.53,140.47,4.04432354]
[1641727169810,35.56379,140.53,140.46,4.04432354]
[1641727170407,35.56379,140.53,140.46,4.0]
[1641727170605,35.56379,140.53,140.45,4.04432354]
[1641727170808,35.56379,140.53,140.43,27.66479]
[1641727171612,35.56379,140.53,140.45,4.0]
[1641727171806,35.56379,140.53,140.44,4.04467863]
[1641727172009,35.56379,140.53,140.45,4.0]
[1641727172408,35.56379,140.53,140.4,27.66479]
[1641727172607,7.12199986,140.52,140.44,4.0]
[1641727173007,7.1237756,140.48,140.41,4.0452525]
[1641727173206,14.3697756,140.48,140.41,4.0452525]
[1641727173407,27.66479,140.43,140.35,40.12652402]
[1641727173606,36.21979,140.43,140.37,4.0]
[1641727174006,36.21979,140.43,140.35,40.12652402]
[1641727174207,36.21979,140.43,140.38,8.04632254]
[1641727174408,8.555,140.43,140.38,4.04632254]
[1641727174608,54.3255,140.44,140.41,4.0]
[1641727174810,27.66479,140.45,140.41,4.0]
[1641727177311,27.66479,140.45,140.37,27.66479]
[1641727177514,27.66479,140.45,140.41,4.0]
[1641727179012,27.66479,140.45,140.42,4.04562561]
[1641727181615,27.66479,140.45,140.38,4.04562561]
[1641727181815,27.66479,140.45,140.39,4.0]
[1641727182415,27.66479,140.45,140.38,4.04562561]
[1641727183117,27.66479,140.45,140.4,4.04562561]
[1641727183518,27.66479,140.45,140.39,4.04562561]
[1641727184118,27.66479,140.45,140.39,8.04562561]
[1641727184318,27.66479,140.45,140.39,4.04562561]
[1641727185319,55.32958,140.45,140.39,8.04562561]
[1641727185518,55.32958,140.45,140.4,4.0]
[1641727185719,55.32958,140.45,140.4,4.04562561]
[1641727185919,55.32958,140.45,140.4,8.04562561]
[1641727186119,55.32958,140.45,140.4,4.04562561]
[1641727186320,55.32958,140.45,140.38,4.0]
[1641727186920,55.32958,140.45,140.34,31.66479]
[1641727187321,55.32958,140.45,140.34,59.32958]
[1641727187520,55.32958,140.45,140.37,4.0]
[1641727187924,55.32958,140.45,140.38,4.0465261]
[1641727188322,55.32958,140.45,140.38,8.0465261]
[1641727188622,55.32958,140.45,140.38,4.0465261]
[1641727188924,15.12606,140.44,140.35,4.0]
[1641727189126,57.4138,140.43,140.29,44.12652402]
[1641727189323,27.66479,140.39,140.3,27.66479]
[1641727189523,7.12910815,140.38,140.3,27.66479]
[1641727189724,7.12910815,140.38,140.31,4.04724042]
[1641727190125,7.12910815,140.38,140.32,4.0]
[1641727190528,7.12910815,140.38,140.34,4.0]
[1641727191827,7.12910815,140.38,140.3,27.66479]
[1641727192029,7.12910815,140.38,140.35,4.0]
[1641727192227,27.66479,140.39,140.32,4.0]
[1641727192429,63.168,140.42,140.32,4.0]
[1641727192430,70.29507576,140.42,140.36,4.0]
[1641727192730,63.168,140.42,140.36,12.768]
[1641727192932,55.168,140.42,140.38,4.0]
[1641727193132,58.1288,140.44,140.37,4.04697265]
[1641727193331,34.79008837,140.45,140.37,4.04697265]
[1641727193531,34.79008837,140.45,140.41,4.0]
[1641727193730,34.79008837,140.45,140.41,9.766]
[1641727193931,56.0239,140.47,140.42,4.0]
[1641727194131,56.0239,140.47,140.41,9.766]
[1641727195032,56.0239,140.47,140.41,4.0]
[1641727195233,56.0239,140.47,140.37,4.0]
[1641727195433,56.0239,140.47,140.38,27.66479]
[1641727195636,56.0239,140.47,140.42,4.0]
[1641727196434,56.0239,140.47,140.41,4.0]
[1641727196634,20.0,140.44,140.35,27.66479]
[1641727196834,7.12656784,140.43,140.35,42.70097789]
[1641727197035,8.446,140.44,140.36,4.04719007]
[1641727197438,27.66479,140.43,140.38,4.0]
[1641727197936,27.66479,140.43,140.39,4.04719007]
[1641727198336,27.66479,140.43,140.35,27.66479]
[1641727198538,27.66479,140.43,140.37,4.0]
[1641727200038,27.66479,140.43,140.35,4.0]
[1641727200241,27.66479,140.43,140.33,27.66479]
[1641727200643,27.66479,140.43,140.36,4.04692127]
[1641727201041,27.66479,140.43,140.38,4.0]
[1641727201540,27.66479,140.43,140.33,38.54179]
[1641727201541,27.66479,140.43,140.33,46.70097789]
[1641727201940,27.66479,140.43,140.38,4.0]
[1641727202541,27.66479,140.43,140.36,4.0]
[1641727202742,27.66479,140.43,140.34,15.03618789]
[1641727202943,27.66479,140.43,140.37,8.04673375]
[1641727203149,27.66479,140.43,140.37,4.04673375]
[1641727203542,27.66479,140.43,140.34,25.57844452]
[1641727203543,27.66479,140.43,140.38,4.04673375]
[1641727203843,34.79135784,140.43,140.34,4.0]
[1641727204042,44.06735784,140.43,140.34,4.0]
[1641727204243,44.06735784,140.43,140.33,15.03618789]
[1641727204444,59.10354573,140.43,140.35,4.04746927]
[1641727204643,7.12783777,140.4,140.35,4.04746927]
[1641727204843,7.12783777,140.4,140.34,8.04746927]
[1641727205245,7.12783777,140.4,140.35,4.04746927]
[1641727205647,27.66479,140.39,140.35,4.04746927]
[1641727206046,7.12910815,140.38,140.3,15.03618789]
[1641727206446,15.12910815,140.38,140.3,15.03618789]
[1641727206846,17.46823935,140.38,140.27,15.03618789]
[1641727207045,17.46823935,140.38,140.28,4.0]
[1641727207447,17.46823935,140.38,140.28,4.04875449]
[1641727207647,27.66479,140.32,140.28,4.04875449]
[1641727207846,36.71279,140.32,140.28,4.04875449]
[1641727208249,36.71279,140.32,140.26,4.04875449]
[1641727208947,36.71279,140.32,140.28,4.0]
[1641727209548,36.71279,140.32,140.29,4.04875449]
[1641727209948,36.71279,140.32,140.27,2.69297924]
[1641727210150,27.66479,140.32,140.28,4.0]
[1641727210350,27.66479,140.32,140.28,8.04875449]
[1641727210550,114.153,140.36,140.31,4.0]
[1641727210753,15.03618789,140.39,140.33,4.0]
[1641727210951,15.03618789,140.39,140.31,8.197]
[1641727211152,22.1642797,140.4,140.31,8.197]
[1641727211352,15.03618789,140.4,140.36,4.0]
[1641727211553,15.03618789,140.4,140.36,13.096]
[1641727211753,15.03618789,140.4,140.36,9.096]
[1641727212155,52.8217,140.42,140.36,9.096]
[1641727212354,52.8217,140.42,140.36,13.096]
[1641727212556,52.8217,140.42,140.38,4.0]
[1641727213156,52.8217,140.42,140.36,9.096]
[1641727213358,72.10328789,140.45,140.38,4.0]
[1641727213958,57.0671,140.45,140.35,27.66479]
[1641727214157,57.0671,140.45,140.37,4.0]
[1641727215359,57.0671,140.45,140.42,4.0]
[1641727215558,63.38194453,140.46,140.42,12.996]
[1641727216158,7.12504453,140.46,140.42,12.996]
[1641727216459,2.33512143,140.45,140.42,12.996]
[1641727217860,27.66479,140.44,140.42,8.996]
[1641727218160,27.66479,140.44,140.35,4.0]
[1641727218360,27.66479,140.44,140.34,27.66479]
[1641727218662,2.33512143,140.43,140.34,27.66479]
[1641727218861,2.33512143,140.43,140.36,4.0]
[1641727220460,2.33512143,140.43,140.34,37.02779]
[1641727220662,2.33512143,140.43,140.38,4.0]
[1641727221562,2.33512143,140.43,140.34,38.90579]
[1641727221862,2.33512143,140.43,140.38,9.131]
[1641727222063,2.33512143,140.43,140.39,4.0]
[1641727222262,42.70097789,140.44,140.39,4.0]
[1641727222263,27.66479,140.44,140.39,4.0]
[1641727222662,27.66479,140.44,140.38,9.131]
[1641727223765,27.66479,140.44,140.4,4.0]
[1641727223964,27.66479,140.44,140.38,9.131]
[1641727224163,27.66479,140.44,140.42,4.0]
[1641727224363,22.16123242,140.46,140.42,4.0]
[1641727224364,7.12504453,140.46,140.42,6.521]
[1641727224965,15.03618789,140.47,140.43,4.0]
[1641727225164,15.03618789,140.47,140.42,6.521]
[1641727225365,15.03618789,140.48,140.42,6.521]
[1641727225765,15.03618789,140.48,140.44,4.0]
[1641727226166,15.03618789,140.48,140.38,13.131]
[1641727226366,15.03618789,140.48,140.4,4.0]
[1641727226569,2.33478554,140.48,140.46,4.0]
[1641727226765,2.33478554,140.48,140.46,10.015]
[1641727227066,2.33478554,140.48,140.47,4.0]
[1641727227467,25.67618789,140.51,140.47,4.0]
[1641727227668,25.67618789,140.51,140.48,4.0]